[Event "SVK Extraliga 2017-18"]
[Site "Slovakia"]
[Date "2017.12.09"]
[Round "5"]
[White "Zvarik, Martin"]
[Black "Gasa, Andrej"]
[Result "1-0"]
[ECO "A45"]
[WhiteElo "2254"]
[BlackElo "2271"]
[Annotator "NA"]
[PlyCount "123"]
[EventDate "2017.??.??"]
[EventType "team-tourn"]
[EventCountry "SVK"]
[SourceTitle "playchess.com"]
[Source "ChessBase"]
[SourceQuality "1"]
[TimeControl "40/5400+30:1800+30"]

1. d4 {[%emt 0:00:00]} Nf6 {[%emt 0:00:19]} 2. Bg5 {[%emt 0:00:07]} Ne4 {[%emt 0:01:24]} 3. Bh4 {[%emt 0:00:44]} d5 {[%emt 0:00:49]} 4. f3 {[%emt 0:01:10]} Nf6 {[%emt 0:00:36]} 5. Nd2 {[%emt 0:01:07] A45: Trompowsky Attack} e6 {[%emt 0:05:01]} 6. c3 {[%emt 0:01:28]} Be7 $146 {[%emt 0:00:59]} ({Predecessor:} 6... c5 7. e3 Be7 8. Bd3 Nbd7 9. f4 b6 10. Qf3 Bb7 11. Ne2 a5 12. Bxf6 Bxf6 {0-1 (47) Chepukaitis,G (2417)-Shaposhnikov,E (2525) St Petersburg 2001}) 7. e4 {[%emt 0:01:31]} a6 {[%emt 0:00:06]} 8. Bd3 {[%emt 0:02:25]} c5 {[%emt 0:05:58]} 9. dxc5 {[%emt 0:10:14]} dxe4 {[%emt 0:02:54]} 10. Bxf6 {[%emt 0:02:49]} gxf6 {[%emt 0:00:55]} 11. Nxe4 {[%emt 0:01:31]} f5 {[%emt 0:00:30]} 12. Qa4+ {[%emt 0:02:34]} (12. Nd6+ $1 $14 Bxd6 13. cxd6) 12... Nc6 {[%emt 0:09:07]} (12... Nd7 $11 13. Nd6+ Kf8) 13. Nd6+ $1 {[%emt 0:00:49]} Bxd6 {[%emt 0:00:03]} 14. cxd6 {[%emt 0:00:09]} Qxd6 {[%emt 0:02:33]} 15. O-O-O {[%emt 0:00:12]} Qe7 {[%emt 0:00:07]} 16. Nh3 {[%emt 0:21:51]} Bd7 {[%emt 0:01:24]} 17. Rhe1 {[%emt 0:05:04]} Qf6 {[%emt 0:11:31]} 18. Qf4 {[%emt 0:08:43]} O-O-O {[%emt 0:00:56]} 19. g4 {[%emt 0:01:08]} Qh4 {[%emt 0:01:22]} 20. Ng5 $2 {[%emt 0:07:27] [#]} (20. Bf1 $11 {and White has nothing to worry.}) 20... Be8 $2 {[%emt 0:04:04]} (20... Rhf8 $1 $17 21. Bc4 e5) 21. Nxe6 {[%emt 0:03:31]} fxe6 {[%emt 0:00:45]} 22. Rxe6 {[%emt 0:00:17]} Rf8 {[%emt 0:28:57]} (22... Bd7 $1 $11 23. Bxf5 Qf2) 23. Bxf5 {[%emt 0:17:00]} Rxf5 {[%emt 0:00:42]} 24. Qxf5 {[%emt 0:03:31]} Bd7 {[%emt 0:01:03]} 25. Qf6 {[%emt 0:01:40]} Qxh2 {[%emt 0:05:03]} 26. Red6 {[%emt 0:01:22]} Qe2 {[%emt 0:04:52]} 27. R1d2 {[%emt 0:01:33]} Qe3 {[%emt 0:00:45]} 28. Qf7 {[%emt 0:01:05]} ({Günstiger ist} 28. b3 $16) 28... Nb8 {[%emt 0:00:54]} 29. R6d3 {[%emt 0:01:56]} ({Resist} 29. Qxh7 $6 Qxf3 30. R6d4 Qf1+ 31. Kc2 Qf6 $16) (29. b3 $18 {has better winning chances.}) 29... Qh6 {[%emt 0:01:21]} 30. f4 {[%emt 0:00:44]} Rf8 {[%emt 0:03:15]} 31. Qc4+ {[%emt 0:00:18]} Qc6 {[%emt 0:00:02]} 32. Qb4 {[%emt 0:01:01]} Re8 {[%emt 0:00:27]} 33. f5 {[%emt 0:00:31]} Qa4 {[%emt 0:03:35]} 34. Qxa4 {[%emt 0:00:31]} Bxa4 {[%emt 0:00:05]} 35. Rh2 {[%emt 0:00:33]} Re1+ {[%emt 0:02:10]} 36. Kd2 {[%emt 0:00:10]} Rd1+ {[%emt 0:02:18]} 37. Ke3 {[%emt 0:00:05]} Re1+ {[%emt 0:00:07]} 38. Kf4 {[%emt 0:00:16]} Re7 {[%emt 0:01:08]} 39. Rdh3 {[%emt 0:00:30]} Bc6 {[%emt 0:00:02]} 40. Rxh7 $18 {[%emt 0:00:25]} Re4+ {[%emt 0:30:03]} 41. Kg5 {[%emt 0:30:19]} Nd7 {[%emt 0:00:30]} 42. Rg7 {[%emt 0:00:00]} Re8 {[%emt 0:00:00]} 43. Rh6 {[%emt 0:00:00]} Nc5 {[%emt 0:00:00]} 44. Kh4 {[%emt 0:00:00]} Ne4 {[%emt 0:00:00]} 45. Rgh7 {[%emt 0:00:00]} Kd8 {[%emt 0:00:00]} 46. Rh8 {[%emt 0:00:00]} Bd5 {[%emt 0:00:00]} 47. Rxe8+ {[%emt 0:00:00]} Kxe8 {[%emt 0:00:00]} 48. g5 {[%emt 0:00:00]} Kf7 {[%emt 0:00:00]} 49. Rh7+ {[%emt 0:00:00]} Kg8 {[%emt 0:00:00]} 50. Rd7 {[%emt 0:00:00]} Bc6 {[%emt 0:00:00]} 51. Rd8+ {[%emt 0:00:00]} Kg7 {[%emt 0:00:00]} 52. Kg4 {[%emt 0:00:00]} Nf2+ {[%emt 0:00:00]} 53. Kg3 {[%emt 0:00:00]} Ne4+ {[%emt 0:00:00]} 54. Kf4 {[%emt 0:00:06]} Nf2 {[%emt 0:00:00]} 55. Rc8 {[%emt 0:01:23]} Nd3+ {[%emt 0:00:00]} 56. Ke3 {[%emt 0:01:00]} Ne5 {[%emt 0:00:00]} 57. Rc7+ {[%emt 0:00:47]} Kf8 {[%emt 0:00:00]} 58. b3 {[%emt 0:01:06]} Nf7 {[%emt 0:00:52]} 59. Kf4 {[%emt 0:01:05]} Nd6 {[%emt 0:00:16]} 60. g6 {[%emt 0:01:02]} Ne8 {[%emt 0:00:22]} 61. Rf7+ {[%emt 0:00:27]} Kg8 {[%emt 0:00:15]} 62. Ke5 {[%emt 0:00:22]} 1-0

[Event "SVK Extraliga 2017-18"]
[Site "Slovakia"]
[Date "2017.12.09"]
[Round "5"]
[White "Federic, Jozef"]
[Black "Lisko, Frantisek"]
[Result "0-1"]
[ECO "A46"]
[WhiteElo "2238"]
[BlackElo "2241"]
[Annotator "NA"]
[PlyCount "128"]
[EventDate "2017.??.??"]
[EventType "team-tourn"]
[EventCountry "SVK"]
[SourceTitle "playchess.com"]
[Source "ChessBase"]
[SourceQuality "1"]
[TimeControl "40/5400+30:1800+30"]

1. d4 {[%emt 0:00:00]} Nf6 {[%emt 0:00:07]} 2. Nf3 {[%emt 0:00:00]} e6 {[%emt 0:00:16]} 3. Bf4 {[%emt 0:06:17]} c5 {[%emt 0:00:26]} 4. c3 {[%emt 0:01:32]} Nc6 {[%emt 0:00:35]} 5. e3 {[%emt 0:01:21]} Nh5 {[%emt 0:00:32]} 6. Bg5 {[%emt 0:04:24] LiveBook: 29 Games} Qb6 {[%emt 0:00:18]} 7. Qb3 {[%emt 0:05:04]} h6 {[%emt 0:00:20]} 8. Bh4 {[%emt 0:01:42]} g5 {[%emt 0:00:21]} 9. Bg3 {[%emt 0:01:56]} Nxg3 {[%emt 0:00:34]} 10. hxg3 {[%emt 0:00:16]} Bg7 {[%emt 0:00:20]} 11. Na3 {[%emt 0:07:48]} d5 {[%emt 0:01:01]} 12. Be2 {[%emt 0:08:16]} Bd7 $11 {[%emt 0:14:08]} 13. Nd2 {[%emt 0:27:04]} O-O-O {[%emt 0:08:57]} 14. Qxb6 {[%emt 0:03:13]} axb6 {[%emt 0:00:05]} 15. Nb5 {[%emt 0:00:50]} Be8 {[%emt 0:02:18]} 16. f4 {[%emt 0:03:04]} f6 {[%emt 0:16:12]} 17. Bg4 {[%emt 0:02:41]} Kd7 {[%emt 0:02:52]} 18. Rd1 {[%emt 0:08:30]} Ke7 {[%emt 0:10:26]} 19. Bh5 {[%emt 0:04:51]} Bd7 {[%emt 0:04:00]} 20. Be2 {[%emt 0:02:52]} Ra8 {[%emt 0:04:57]} 21. Ra1 {[%emt 0:00:41]} Rhc8 {[%emt 0:02:38]} 22. Na3 {[%emt 0:01:05]} Nd8 {[%emt 0:06:43]} 23. Bb5 {[%emt 0:01:14]} Bc6 {[%emt 0:01:37]} 24. Bxc6 {[%emt 0:00:20]} bxc6 {[%emt 0:00:22]} 25. dxc5 {[%emt 0:03:45]} bxc5 {[%emt 0:00:08]} 26. Ke2 {[%emt 0:00:13]} Rcb8 {[%emt 0:01:21]} 27. Rhb1 {[%emt 0:00:10]} f5 {[%emt 0:01:28]} 28. Nc2 {[%emt 0:00:04]} Nf7 {[%emt 0:01:35]} 29. Ne1 {[%emt 0:01:14]} e5 {[%emt 0:02:45]} 30. Nd3 {[%emt 0:00:47]} Kd6 {[%emt 0:00:58]} 31. Rd1 {[%emt 0:01:09]} e4 {[%emt 0:01:06]} 32. Ne5 {[%emt 0:00:13]} Nxe5 {[%emt 0:00:59]} 33. fxe5+ {[%emt 0:00:04]} Kxe5 {[%emt 0:00:30]} 34. b3 {[%emt 0:00:59]} Ke6 {[%emt 0:01:14]} 35. Rdc1 {[%emt 0:00:32]} Ra3 {[%emt 0:03:26]} 36. Rc2 {[%emt 0:00:37]} Rba8 {[%emt 0:02:28]} 37. Kd1 {[%emt 0:02:30]} Be5 {[%emt 0:00:39]} 38. g4 {[%emt 0:00:34]} f4 {[%emt 0:02:29]} 39. Ke2 {[%emt 0:00:32]} fxe3 40. Kxe3 {[%emt 0:00:03]} Bxc3 {[%emt 0:33:06]} 41. Rh1 Bd4+ {[%emt 0:01:55]} 42. Ke2 {[%emt 0:30:04]} Rxa2 {[%emt 0:01:21]} 43. Rxh6+ {[%emt 0:00:07]} Kd7 {[%emt 0:01:04]} 44. Rh7+ {[%emt 0:01:56]} Kd6 {[%emt 0:01:08]} 45. Rh6+ {[%emt 0:00:31]} Kc7 {[%emt 0:00:34]} 46. Kd1 {[%emt 0:00:33]} Rxc2 {[%emt 0:01:00]} 47. Kxc2 {[%emt 0:00:03]} Ra2+ {[%emt 0:00:33]} 48. Kd1 {[%emt 0:00:13]} e3 {[%emt 0:00:00]} 49. Nf3 {[%emt 0:00:00]} Rxg2 {[%emt 0:00:00]} 50. b4 {[%emt 0:00:00]} Kb6 {[%emt 0:00:00]} 51. bxc5+ {[%emt 0:00:00]} Bxc5 {[%emt 0:00:00]} 52. Re6 {[%emt 0:00:00]} Rxg4 {[%emt 0:00:00]} 53. Ne5 {[%emt 0:00:00]} Rg1+ {[%emt 0:00:00]} 54. Ke2 {[%emt 0:00:00]} Rg2+ {[%emt 0:00:00]} 55. Kf3 {[%emt 0:00:00]} Rf2+ {[%emt 0:00:00]} 56. Kg3 {[%emt 0:00:00]} Kb5 {[%emt 0:00:00]} 57. Nd3 {[%emt 0:00:00]} Rf8 {[%emt 0:00:00]} 58. Kg4 {[%emt 0:00:00]} Bb6 {[%emt 0:00:00]} 59. Kxg5 {[%emt 0:00:00]} d4 {[%emt 0:00:00]} 60. Kg4 {[%emt 0:00:00]} c5 {[%emt 0:00:00]} 61. Ne5 {[%emt 0:00:00]} Bc7 {[%emt 0:00:00]} 62. Nd7 {[%emt 0:00:00]} Rd8 {[%emt 0:00:00]} 63. Nf6 {[%emt 0:00:00]} d3 {[%emt 0:00:46]} 64. Rxe3 {[%emt 0:00:00]} d2 {[%emt 0:00:27]} 0-1

[Event "SVK Extraliga 2017-18"]
[Site "Slovakia"]
[Date "2017.12.09"]
[Round "5"]
[White "Vrbova, Niki"]
[Black "Palecek, Peter"]
[Result "0-1"]
[ECO "B00"]
[WhiteElo "2181"]
[BlackElo "2257"]
[Annotator "NA"]
[PlyCount "88"]
[EventDate "2017.??.??"]
[EventType "team-tourn"]
[EventCountry "SVK"]
[SourceTitle "playchess.com"]
[Source "ChessBase"]
[SourceQuality "1"]
[TimeControl "40/5400+30:1800+30"]

{[%evp 8,80,20,27,13,22,10,2,23,8,8,14,27,6,42,39,86,67,107,89,104,120,200,119,104,89,158,109,32767,77,94,75,78,99,102,50,66,-37,-20,-79,-104,-192,-165,-332,-188,-211,-156,32767,32767,32767,32767,32767,32767,32767,32767,32767,32767,32767,32767,32767,-164,32767,32767,32767,32767,32767,-135,32767,32767,32767,32767,32767,32767,-366,-384]} 1. e4 {[%emt 0:00:00]} e5 {[%emt 0:36:23]} 2. Nf3 {[%emt 0:01:27]} Nc6 {[%emt 0:00:34]} 3. Bc4 {[%emt 0:00:27]} Bc5 {[%emt 0:00:03]} 4. c3 {[%emt 0:00:10]} Nf6 {[%emt 0:00:05]} 5. d3 {[%emt 0:00:04]} d6 {[%emt 0:00:20]} 6. O-O {[%emt 0:00:45]} h6 {[%emt 0:02:31]} 7. Re1 {[%emt 0:03:54]} O-O {[%emt 0:00:16]} 8. h3 {[%emt 0:01:33]} a5 {[%emt 0:01:36] C54: Giuoco Piano: 4 c3 Nf6, main lines with 5 d4 and 5 d3} 9. Nbd2 {[%emt 0:01:29] LiveBook: 31 Games} Rb8 $146 {[%emt 0:00:07]} ({Predecessor:} 9... Be6 10. Bb5 Qb8 11. Nf1 Qa7 12. Be3 Bxe3 13. Nxe3 Ne7 14. a4 Ng6 15. Bc4 Bxc4 16. Nxc4 {½-½ (44) Carlsen,M (2837)-Ding,L (2774) Saint Louis 2017}) 10. a4 {[%emt 0:03:33]} Qe7 {[%emt 0:06:18]} 11. Nf1 {[%emt 0:03:31]} Nd8 {[%emt 0:06:56]} (11... Be6 $11) 12. Ng3 {[%emt 0:02:02]} c6 {[%emt 0:00:26]} 13. Bb3 {[%emt 0:07:24]} Bb6 {[%emt 0:00:17]} 14. d4 {[%emt 0:03:38]} Bc7 {[%emt 0:03:55]} (14... Ne6 $16 {was necessary.}) 15. Bc2 {[%emt 0:04:46]} Nh7 {[%emt 0:09:44]} 16. b3 {[%emt 0:08:37]} b5 {[%emt 0:06:55]} (16... Ne6 $142) 17. axb5 {[%emt 0:00:50]} cxb5 {[%emt 0:00:01]} 18. Nf5 {[%emt 0:13:49]} Bxf5 {[%emt 0:02:30]} 19. exf5 {[%emt 0:00:06]} Nf6 {[%emt 0:00:34]} 20. Nh2 {[%emt 0:07:08]} e4 {[%emt 0:02:13]} 21. Ng4 {[%emt 0:02:09]} d5 {[%emt 0:00:51]} 22. Nxf6+ {[%emt 0:06:09]} ({White should try} 22. c4 $1 $14) 22... Qxf6 {[%emt 0:00:02]} 23. Qg4 {[%emt 0:00:52]} (23. c4 $11 {remains equal.}) 23... Nc6 {[%emt 0:00:24]} 24. Bd2 {[%emt 0:03:26]} (24. Be3 $17 {might work better.}) 24... b4 {[%emt 0:01:18]} 25. f3 $2 {[%emt 0:02:27]} (25. Ra4 $17 {ist wohl besser.}) 25... bxc3 {[%emt 0:04:43]} 26. Bxc3 {[%emt 0:00:15]} exf3 {[%emt 0:01:46]} 27. Qxf3 {[%emt 0:01:19]} Bb6 {[%emt 0:00:19]} 28. Kh1 {[%emt 0:00:31]} Bxd4 {[%emt 0:02:02]} 29. Bxd4 Nxd4 {[%emt 0:00:05]} 30. Qd3 {[%emt 0:02:02]} Rfc8 {[%emt 0:00:41]} 31. Ra2 {[%emt 0:00:32]} Nxc2 {[%emt 0:04:55]} 32. Rxc2 {[%emt 0:00:05]} Rxc2 {[%emt 0:00:05]} 33. Qxc2 {[%emt 0:00:03]} d4 {[%emt 0:01:44]} 34. Qd3 {[%emt 0:02:21]} Rd8 {[%emt 0:01:15]} 35. Kg1 {[%emt 0:05:04]} Rd5 {[%emt 0:02:25]} 36. Rf1 {[%emt 0:01:08]} Rc5 {[%emt 0:00:27]} (36... Qe5 $19 37. Rd1 Kh7) 37. Rd1 {[%emt 0:05:43]} Rd5 {[%emt 0:01:56]} 38. Rf1 {[%emt 0:00:05]} Kh7 {[%emt 0:00:05]} 39. Rf4 {[%emt 0:01:52]} Qe5 {[%emt 0:00:44]} 40. Rf3 $19 {[%emt 0:06:09]} (40. Rf1) 40... Rc5 {[%emt 0:30:11]} 41. Qd2 {[%emt 0:32:28]} Rc3 {[%emt 0:02:03]} 42. Rd3 {[%emt 0:00:00]} Qc5 {[%emt 0:00:00]} 43. f6 {[%emt 0:00:00]} Rc1+ {[%emt 0:00:00]} 44. Kh2 {[%emt 0:00:00]} Qc7+ {[%emt 0:00:00]} 0-1

[Event "SVK Extraliga 2017-18"]
[Site "Slovakia"]
[Date "2017.12.09"]
[Round "5"]
[White "Najgebauer, Szemjon"]
[Black "Hros, Roman"]
[Result "0-1"]
[ECO "A46"]
[WhiteElo "2180"]
[BlackElo "2194"]
[Annotator "NA"]
[PlyCount "60"]
[EventDate "2017.??.??"]
[EventType "team-tourn"]
[EventCountry "SVK"]
[SourceTitle "playchess.com"]
[Source "ChessBase"]
[SourceQuality "1"]
[TimeControl "40/5400+30:1800+30"]

{[%evp 11,42,37,34,42,58,46,57,58,61,66,71,62,68,47,49,58,85,69,94,66,87,71,72,88,85,98,90,63,66,0,0,-8,-25]} 1. d4 {[%emt 0:00:00]} Nf6 {[%emt 0:00:10]} 2. Nf3 {[%emt 0:00:35]} e6 {[%emt 0:00:27]} 3. c4 {[%emt 0:01:04]} c5 {[%emt 0:00:53]} 4. Nc3 {[%emt 0:02:02]} cxd4 {[%emt 0:00:37]} 5. Nxd4 {[%emt 0:00:26]} a6 {[%emt 0:01:06]} 6. e4 {[%emt 0:02:27]} Qc7 {[%emt 0:02:55]} 7. Be2 {[%emt 0:03:42]} b6 {[%emt 0:00:41]} 8. Be3 {[%emt 0:03:11]} Bb7 {[%emt 0:00:49]} 9. f3 {[%emt 0:00:39]} Be7 {[%emt 0:10:21]} 10. Qd2 {[%emt 0:02:58]} d6 {[%emt 0:01:11]} 11. O-O {[%emt 0:01:16]} O-O {[%emt 0:00:12]} 12. Rfc1 {[%emt 0:02:15]} Nbd7 {[%emt 0:00:18]} 13. a4 {[%emt 0:02:02]} Rac8 {[%emt 0:06:38]} 14. a5 {[%emt 0:05:07]} Rfe8 {[%emt 0:06:03] LiveBook: 3 Games} 15. Bf1 {[%emt 0:14:03]} Bd8 {[%emt 0:03:50]} 16. b4 {[%emt 0:04:31]} bxa5 {[%emt 0:02:26]} 17. Rxa5 {[%emt 0:01:51]} Qb8 {[%emt 0:12:23]} 18. Raa1 {[%emt 0:03:16]} Bc7 {[%emt 0:06:31]} 19. g3 {[%emt 0:07:45]} (19. b5 $16 a5 20. Nc6) 19... Ne5 {[%emt 0:06:34]} 20. Qf2 {[%emt 0:05:34]} (20. c5 $16) 20... d5 {[%emt 0:21:19]} 21. b5 {[%emt 0:16:09]} axb5 $11 {[%emt 0:04:40]} 22. Ndxb5 {[%emt 0:01:13]} dxe4 {[%emt 0:00:46]} 23. Ba7 {[%emt 0:11:41]} Nxf3+ {[%emt 0:00:05]} 24. Kh1 {[%emt 0:03:16]} e3 {[%emt 0:04:13]} 25. Qxe3 {[%emt 0:00:56]} Nxh2+ {[%emt 0:03:00]} 26. Kxh2 {[%emt 0:02:11]} Ng4+ {[%emt 0:00:25]} 27. Kh3 {[%emt 0:00:26]} Nxe3 {[%emt 0:00:05]} 28. Bxb8 {[%emt 0:00:14]} Bxb8 {[%emt 0:00:12]} 29. Na7 {[%emt 0:01:12]} Rc5 {[%emt 0:01:11]} 30. Rab1 {[%emt 0:01:07]} Rh5# {[%emt 0:00:08]} 0-1

[Event "SVK Extraliga 2017-18"]
[Site "Slovakia"]
[Date "2017.12.09"]
[Round "5"]
[White "Sorkovsky, Miroslav"]
[Black "Petran, Peter"]
[Result "0-1"]
[ECO "B06"]
[WhiteElo "2153"]
[BlackElo "2307"]
[Annotator "NA"]
[PlyCount "60"]
[EventDate "2017.??.??"]
[EventType "team-tourn"]
[EventCountry "SVK"]
[SourceTitle "playchess.com"]
[Source "ChessBase"]
[SourceQuality "1"]
[TimeControl "40/5400+30:1800+30"]

1. e4 {[%emt 0:00:00]} g6 {[%emt 0:00:05]} 2. Nc3 {[%emt 0:00:51]} Bg7 {[%emt 0:00:05]} 3. f4 {[%emt 0:00:09]} c6 {[%emt 0:00:34]} 4. d4 {[%emt 0:00:10]} d5 {[%emt 0:00:07]} 5. e5 {[%emt 0:00:08]} Nh6 {[%emt 0:00:04]} 6. Nf3 {[%emt 0:00:29]} O-O {[%emt 0:00:25]} 7. Be2 {[%emt 0:06:02]} f6 {[%emt 0:00:24]} 8. O-O {[%emt 0:00:23]} Bg4 {[%emt 0:01:17]} 9. h3 {[%emt 0:08:10]} Bxf3 {[%emt 0:00:09]} 10. Bxf3 {[%emt 0:00:03]} e6 {[%emt 0:01:48] B15: Caro-Kann: 3 Nc3: 3...g6 and 3...dxe4 4 Nxe4 Nf6 5 Nxf6+ exf6} 11. g4 $146 {[%emt 0:03:39]} ({Predecessor:} 11. Ne2 c5 12. c4 Nc6 13. cxd5 exd5 14. dxc5 fxe5 15. Qxd5+ Kh8 16. fxe5 Nf5 17. Qxd8 Raxd8 18. Bf4 {1-0 (65) Saric,I (2660)-Anton Guijarro,D (2627) Almaty 2016}) 11... fxe5 {[%emt 0:00:25]} 12. fxe5 {[%emt 0:13:04]} c5 {[%emt 0:02:15]} 13. dxc5 {[%emt 0:01:26]} Nc6 {[%emt 0:04:23]} 14. Ne2 {[%emt 0:20:35]} Nf7 {[%emt 0:02:07]} 15. Bg2 {[%emt 0:06:15]} Qe7 {[%emt 0:02:53]} 16. Be3 {[%emt 0:09:31]} Nfxe5 {[%emt 0:02:06]} 17. Nd4 {[%emt 0:08:19]} Nc4 {[%emt 0:04:55]} 18. Nxc6 {[%emt 0:04:00]} bxc6 {[%emt 0:00:09]} 19. Bd4 {[%emt 0:00:41]} Nxb2 {[%emt 0:04:32]} 20. Qd2 {[%emt 0:02:55]} Nc4 {[%emt 0:00:38]} 21. Qd3 {[%emt 0:00:55]} Rxf1+ {[%emt 0:13:18]} 22. Rxf1 {[%emt 0:00:28]} Rf8 {[%emt 0:00:08]} 23. Bxg7 {[%emt 0:06:47]} Kxg7 {[%emt 0:02:30]} 24. Qc3+ {[%emt 0:01:26]} e5 {[%emt 0:01:18]} 25. Rxf8 {[%emt 0:01:21]} Qxf8 {[%emt 0:01:13]} 26. Qb4 {[%emt 0:00:14]} Qe7 $19 {[%emt 0:02:37]} 27. Bf1 {[%emt 0:02:08]} a5 {[%emt 0:01:32]} 28. Qb8 {[%emt 0:01:09]} Qxc5+ {[%emt 0:00:17]} 29. Kh1 {[%emt 0:00:20]} Nd6 {[%emt 0:01:23]} 30. Qc7+ {[%emt 0:00:34]} Nf7 {[%emt 0:00:14]} 0-1

[Event "SVK Extraliga 2017-18"]
[Site "Slovakia"]
[Date "2017.12.09"]
[Round "5"]
[White "Borik, Juraj"]
[Black "Gasa, Patrik"]
[Result "1-0"]
[ECO "A21"]
[WhiteElo "2145"]
[BlackElo "2116"]
[Annotator "NA"]
[PlyCount "129"]
[EventDate "2017.??.??"]
[EventType "team-tourn"]
[EventCountry "SVK"]
[SourceTitle "playchess.com"]
[Source "ChessBase"]
[SourceQuality "1"]
[TimeControl "40/5400+30:1800+30"]

1. c4 {[%emt 0:00:00]} e5 {[%emt 0:04:07]} 2. Nc3 {[%emt 0:00:36]} f5 {[%emt 0:00:06]} 3. g3 {[%emt 0:01:00]} Nf6 {[%emt 0:00:07]} 4. Bg2 {[%emt 0:00:25]} Nc6 {[%emt 0:00:27]} 5. d3 {[%emt 0:01:11]} a6 {[%emt 0:00:45]} 6. e3 {[%emt 0:00:57]} Bc5 {[%emt 0:00:41]} 7. Nge2 {[%emt 0:00:53]} d6 {[%emt 0:00:26]} 8. O-O {[%emt 0:01:07]} O-O {[%emt 0:00:06]} 9. a3 {[%emt 0:00:46] A25: Englische Eröffnung (Sizilianisch im Anzug)} (9. d4 Ba7 10. a3 Qe8 11. Nd5 Nxd5 12. cxd5 Nd8 13. Qc2 Bb6 14. Bd2 Qh5 15. Rae1 Nf7 16. dxe5 Nxe5 {1-0 (48) Gruskovnjak,T (2279)-Kosmac,B (2202) Slovenia 2017}) 9... Ne7 {[%emt 0:06:59]} 10. b4 {[%emt 0:09:50]} Ba7 {[%emt 0:02:57]} 11. Bb2 {[%emt 0:01:34]} c6 {[%emt 0:00:45]} 12. Rc1 $146 {[%emt 0:02:29]} ({Vorgänger:} 12. Qd2 Ng6 13. e4 Bb8 {0-1 (34) Baranowsky,P (1989)-Moeller,D (1683) Berlin 2011}) 12... Be6 {[%emt 0:00:30]} 13. Na4 {[%emt 0:02:11]} (13. Qc2 $11) 13... Ng6 {[%emt 0:08:43]} ({Black should play} 13... b5 $15 14. Nac3 bxc4) 14. c5 {[%emt 0:05:31]} d5 {[%emt 0:00:40]} 15. f4 {[%emt 0:03:25]} Qe7 {[%emt 0:20:42]} 16. Qd2 {[%emt 0:08:26]} e4 {[%emt 0:09:01]} 17. Nd4 {[%emt 0:17:00]} exd3 {[%emt 0:11:56]} 18. Qxd3 {[%emt 0:02:12]} Ne4 {[%emt 0:07:50]} 19. Nf3 {[%emt 0:04:32]} Rae8 {[%emt 0:02:42]} 20. Rfe1 {[%emt 0:06:10]} Bb8 {[%emt 0:00:49]} 21. Nd4 {[%emt 0:00:41]} Bc7 {[%emt 0:15:03]} 22. Bf3 {[%emt 0:01:32]} Qf7 {[%emt 0:02:58]} 23. Bh5 {[%emt 0:00:53]} Nf6 $14 {[%emt 0:02:07]} 24. Bd1 {[%emt 0:01:56]} Ne4 {[%emt 0:00:28]} 25. Nf3 {[%emt 0:01:42]} h5 {[%emt 0:01:25]} 26. Rc2 {[%emt 0:02:56]} Bd8 {[%emt 0:00:29]} 27. Nd4 {[%emt 0:02:07]} h4 {[%emt 0:00:31]} 28. Rg2 {[%emt 0:01:00]} h3 {[%emt 0:00:36]} 29. Rc2 {[%emt 0:00:09]} Nh8 {[%emt 0:00:26]} 30. Qf1 {[%emt 0:01:12]} Bf6 {[%emt 0:00:31]} 31. Qxh3 {[%emt 0:00:26]} g5 {[%emt 0:00:32]} 32. fxg5 {[%emt 0:03:38]} Nxg5 {[%emt 0:00:27]} 33. Qg2 {[%emt 0:00:07]} Ng6 {[%emt 0:00:28]} 34. Rf1 {[%emt 0:01:13]} f4 {[%emt 0:00:37]} 35. Nxe6 {[%emt 0:01:22]} Qxe6 {[%emt 0:00:31]} 36. exf4 {[%emt 0:01:23]} Qe3+ {[%emt 0:00:28]} 37. Kh1 {[%emt 0:00:10]} Bxb2 {[%emt 0:00:26]} 38. Rxb2 {[%emt 0:00:59]} Ne4 {[%emt 0:00:11]} 39. Bh5 {[%emt 0:02:15]} Kg7 {[%emt 0:00:34]} 40. Qf3 {[%emt 0:02:49]} Nf6 {[%emt 0:30:37]} 41. Bxg6 {[%emt 0:34:49]} Kxg6 {[%emt 0:00:00]} 42. Rb3 {[%emt 0:00:00]} Qxf3+ {[%emt 0:00:00]} 43. Rbxf3 {[%emt 0:00:00]} Rh8 {[%emt 0:00:00]} 44. f5+ {[%emt 0:00:00]} Kg5 {[%emt 0:00:00]} 45. Nc3 {[%emt 0:00:00]} Ng4 {[%emt 0:00:00]} 46. h4+ {[%emt 0:00:00]} Kf6 {[%emt 0:00:00]} 47. Nd1 {[%emt 0:00:00]} Re2 {[%emt 0:00:00]} 48. Nf2 {[%emt 0:00:00]} Ne5 {[%emt 0:00:00]} 49. Rf4 {[%emt 0:00:00]} Kf7 {[%emt 0:00:00]} 50. Ng4 {[%emt 0:00:00]} Nc4 {[%emt 0:00:00]} 51. a4 {[%emt 0:00:00]} Nd2 {[%emt 0:00:00]} 52. R1f2 {[%emt 0:06:07]} Ne4 {[%emt 0:00:00]} 53. Rg2 {[%emt 0:00:22]} Re1+ {[%emt 0:01:53]} 54. Kh2 {[%emt 0:00:06]} Rb1 {[%emt 0:00:06]} 55. Ne5+ {[%emt 0:01:04]} Kf6 {[%emt 0:00:21]} 56. Ng6 {[%emt 0:00:49]} Rh7 {[%emt 0:01:11]} 57. g4 {[%emt 0:00:15]} Kg7 {[%emt 0:03:54]} 58. g5 {[%emt 0:01:31]} Rh5 {[%emt 0:01:04]} 59. Ne5 {[%emt 0:00:49]} Re1 {[%emt 0:00:16]} 60. f6+ {[%emt 0:00:20]} Kf8 {[%emt 0:00:58]} 61. Nd7+ {[%emt 0:00:41]} Kf7 {[%emt 0:00:49]} 62. g6+ {[%emt 0:00:06]} Ke6 {[%emt 0:00:27]} 63. f7 {[%emt 0:00:22]} Rf1 {[%emt 0:00:44]} 64. Rxf1 {[%emt 0:00:32]} Rxh4+ {[%emt 0:00:02]} 65. Kg1 {[%emt 0:00:09]} 1-0

[Event "SVK Extraliga 2017-18"]
[Site "Slovakia"]
[Date "2017.12.09"]
[Round "5"]
[White "Brestak, Jan"]
[Black "Csonka, Attila Istvan"]
[Result "*"]
[ECO "C07"]
[WhiteElo "2135"]
[BlackElo "2365"]
[Annotator "NA"]
[PlyCount "33"]
[EventDate "2017.??.??"]
[EventType "team-tourn"]
[EventCountry "SVK"]
[SourceTitle "playchess.com"]
[Source "ChessBase"]
[SourceQuality "1"]
[TimeControl "40/5400+30:1800+30"]

{[%evp 8,30,14,4,23,23,22,27,26,24,49,33,58,14,20,0,32,24,32767,32767,32767,32767,32767,112,142]} 1. e4 {[%emt 0:00:00]} e6 {[%emt 0:00:05]} 2. d4 {[%emt 0:00:00]} d5 {[%emt 0:00:05]} 3. Nd2 {[%emt 0:00:00]} c5 {[%emt 0:00:27]} 4. exd5 {[%emt 0:00:26]} Qxd5 {[%emt 0:00:33]} 5. Ngf3 {[%emt 0:00:19]} Nf6 {[%emt 0:03:54]} 6. Bc4 {[%emt 0:01:20]} Qd6 {[%emt 0:01:44]} 7. dxc5 {[%emt 0:03:50]} Qxc5 {[%emt 0:02:10]} 8. Qe2 {[%emt 0:00:13] LiveBook: 6 Games} a6 {[%emt 0:05:45]} 9. O-O {[%emt 0:03:28]} Bd7 {[%emt 0:07:40]} 10. Nb3 {[%emt 0:03:16]} Qc7 {[%emt 0:00:24]} 11. Bg5 {[%emt 0:01:44]} Nc6 {[%emt 0:01:35]} (11... h6 $5 {[%cal Rh6g5]} 12. Bh4 (12. Bxf6 gxf6 13. Rad1 Bg7 $11) 12... Nc6 $14) 12. Bh4 {[%emt 0:10:03]} Bd6 {[%emt 0:03:05]} 13. Rad1 {[%emt 0:04:04]} O-O-O {[%emt 0:03:44]} 14. Bxa6 {[%emt 0:10:52]} e5 {[%emt 0:30:20]} 15. Bg3 {[%emt 0:25:52]} Rhe8 $16 {[%emt 0:01:56]} 16. Bb5 {[%emt 0:06:27]} Bg4 {[%emt 0:00:54]} 17. Qe3 {[%emt 0:01:30]} *